fUST/lending_fUST_20250628
["ID","MTS","AMOUNT","RATE_DAILY","PERIOD"]
[368261142,1751079045986,-769.29,0.00021369,2]
[368261143,1751079045995,-518.22,0.00021369,2]
[368261145,1751079046004,-460.0,0.00021369,2]
[368261148,1751079046014,-794.0,0.00021369,2]
[368261150,1751079046023,-2838.79,0.00021369,2]
[368261153,1751079046033,-417.26069765,0.00021369,2]
[368261156,1751079046042,-961.18,0.00021369,2]
[368261158,1751079046051,-502.94,0.00021369,2]
[368261160,1751079046061,-460.0,0.00021369,2]
[368261162,1751079046070,-563.65740959,0.00021369,2]
[368261164,1751079046080,-471.7,0.00021369,2]
[368261166,1751079046089,-460.0,0.00021369,2]
[368261168,1751079046099,-1002.76,0.00021369,2]
[368261170,1751079046109,-460.0,0.00021369,2]
[368261172,1751079046119,-2609.47,0.00021369,2]
[368261174,1751079046128,-731.35,0.00021369,2]
[368261176,1751079046137,-602.85,0.00021369,2]
[368261178,1751079046146,-685.308,0.00021412,2]
[368261180,1751079046156,-177.98596191,0.00021412,2]
[368261182,1751079046165,-168.0,0.00021506,2]
[368261184,1751079046175,-11346.31146788,0.00021519,2]
[368261186,1751079046184,-520582.3347692,0.0002152,2]
[368261189,1751079046203,-69842.12629423,0.0002152,2]
[368261192,1751079046215,-3647.92052878,0.0002152,2]
[368261194,1751079046235,-1584.10564944,0.0002152,2]
[368261202,1751079046294,-490.00970072,0.00019178,2]
[368261204,1751079046304,-3062.07029928,0.0002152,2]
[368261205,1751079046315,-1922.051547,0.0002152,2]
[368261207,1751079046326,-440.87003063,0.0002152,2]
[368261238,1751079046604,-342.45075934,0.00019178,2]
[368261240,1751079046616,-117.54924066,0.00019178,2]
[368261242,1751079046625,-367.32210728,0.00019178,2]
[368261245,1751079046637,-92.67789272,0.00019178,2]
[368261247,1751079046647,-460.0,0.00019452,2]
[368261249,1751079046656,-460.0,0.00019452,2]
[368261251,1751079046666,-460.0,0.00019726,2]
[368261253,1751079046676,-460.0,0.00019726,2]
[368261255,1751079046686,-575.118961,0.00020356,2]
[368261257,1751079046695,-177.4788171,0.00020356,2]
[368261258,1751079046704,-13808.89904461,0.0002152,2]
[368261260,1751079046716,-107170.00000002,0.0002152,2]
[368261280,1751079046902,-460.0,0.00019178,2]
[368261282,1751079046912,-295.40611618,0.00019178,2]
[368261285,1751079046927,-164.59388382,0.00019178,2]
[368261287,1751079046936,-460.0,0.00019178,2]
[368261289,1751079046946,-480.48,0.00019178,2]
[368261291,1751079046955,-460.0,0.00019452,2]
[368261293,1751079046966,-4334.8192866,0.0002152,2]
[368261295,1751079046977,-1139.69041136,0.0002152,2]
[368261608,1751079597016,231.779988,0.00013699,2]
[368261609,1751080163079,-588.01868824,0.00018155,2]
[368261610,1751080170598,-450.8,0.00018155,2]
[368261611,1751080170629,-688.82647756,0.00018155,2]
[368261612,1751080190268,27.50403207,0.00018155,2]
[368261651,1751080232659,-392.20007493,0.00018155,2]
[368261653,1751080232670,-246.3230576,0.00018293,2]
[368261655,1751080232679,-144.25217812,0.000189,2]
[368261660,1751080232712,-1600.97273507,0.000189,2]
[368261662,1751080232721,-2149.6863588,0.00018942,2]
[368261664,1751080232731,-374.1614836,0.00019078,2]
[368261666,1751080232740,-151.0,0.00019166,2]
[368261668,1751080232749,-151.0,0.00019166,2]
[368261670,1751080232759,-151.0,0.00019166,2]
[368261672,1751080232769,-247.26784846,0.00019166,2]
[368261674,1751080232778,-1200.0,0.00019175,2]
[368261676,1751080232788,-300.0,0.00019176,2]
[368261677,1751080232797,-300.0,0.00019176,2]
[368261679,1751080232807,-500.0,0.00019177,2]
[368261681,1751080232816,-189.6700444,0.00019177,2]
[368261683,1751080232825,-507.82074132,0.00019177,2]
[368261685,1751080232835,-305.78568132,0.00019178,2]
[368261687,1751080232844,-460.0,0.00019178,2]
[368261689,1751080232853,-460.0,0.00019178,2]
[368261691,1751080232862,-460.0,0.00019178,2]
[368261693,1751080232871,-474.44781705,0.00019178,2]
[368261695,1751080232881,-467.64640697,0.00019178,2]
[368261697,1751080232890,-443.11045222,0.00019178,2]
[368261699,1751080232900,-398.35848419,0.00019178,2]
[368261701,1751080232909,-466.20191425,0.00019178,2]
[368261703,1751080232918,-382.23150915,0.00019178,2]
[368261705,1751080232927,-446.57966833,0.00019178,2]
[368261707,1751080232936,-445.98235217,0.00019178,2]
[368261709,1751080232946,-460.0,0.00019178,2]
[368261711,1751080232955,-473.89910822,0.00019178,2]
[368261713,1751080232964,-410.96999131,0.00019178,2]
[368261715,1751080232973,-460.0,0.00019178,2]
[368261717,1751080232982,-468.85549186,0.00019178,2]
[368261719,1751080232991,-460.0,0.00019178,2]
[368261721,1751080233000,-501.72293485,0.00019178,2]
[368261723,1751080233009,-460.0,0.00019178,2]
[368261724,1751080233018,-462.72702027,0.00019178,2]
[368261725,1751080233027,-500.0,0.00019178,2]
[368261726,1751080233037,-475.62420558,0.00019178,2]
[368261727,1751080233046,-460.0,0.00019178,2]
[368261728,1751080233056,-460.0,0.00019178,2]
[368261729,1751080233066,-432.42463614,0.00019178,2]
[368261731,1751080233075,-473.76960247,0.00019178,2]
[368261733,1751080233085,-460.0,0.00019178,2]
[368261734,1751080233095,-474.4678957,0.00019178,2]
[368261735,1751080233105,-460.0,0.00019178,2]
[368261736,1751080233115,-479.03542659,0.00019178,2]
[368261737,1751080233125,-468.6235028,0.00019178,2]
[368261738,1751080233134,-214.24,0.00019178,2]
[368261739,1751080233144,-460.0,0.00019178,2]
[368261740,1751080233154,-506.34302154,0.00019178,2]
[368261741,1751080233166,-460.0,0.00019178,2]
[368261742,1751080233177,-460.0,0.00019178,2]
[368261743,1751080233193,-460.0,0.00019178,2]
[368261744,1751080233202,-460.0,0.00019178,2]
[368261745,1751080233211,-470.10525248,0.00019178,2]
[368261746,1751080233220,-572.36744756,0.00019178,2]
[368261747,1751080233230,-460.0,0.00019178,2]
[368261748,1751080233240,-460.0,0.00019178,2]
[368261749,1751080233249,-460.0,0.00019178,2]
[368261750,1751080233258,-460.0,0.00019178,2]
[368261751,1751080233269,-480.67007645,0.00019178,2]
[368261752,1751080233278,-472.01041929,0.00019178,2]
[368261753,1751080233287,-473.10634136,0.00019178,2]
[368261754,1751080233297,-464.86902014,0.00019178,2]
[368261755,1751080233459,-428.60266438,0.00019178,2]
[368261756,1751080233470,-223.39560361,0.00019178,2]
[368261757,1751080233481,-464.94939749,0.00019178,2]
[368261758,1751080233492,-422.92729509,0.00019178,2]
[368261759,1751080233502,-484.08,0.00019178,2]
[368261760,1751080233512,-469.63483697,0.00019178,2]
[368261761,1751080233523,-966.7,0.00019178,2]
[368261762,1751080233533,-460.0,0.00019178,2]
[368261763,1751080233542,-460.0,0.00019178,2]
[368261764,1751080233553,-550.45,0.00019178,2]
[368261765,1751080233563,-674.73,0.00019178,2]
[368261766,1751080233583,-460.0,0.00019178,2]
[368261767,1751080233597,-460.0,0.00019178,2]
[368261768,1751080233607,-446.27552285,0.00019178,2]
[368261769,1751080233617,-460.0,0.00019178,2]
[368261770,1751080233627,-424.55600644,0.00019178,2]
[368261771,1751080233641,-324.53402186,0.00019178,2]
[368261772,1751080233651,-460.0,0.00019178,2]
[368261773,1751080233661,-460.0,0.00019178,2]
[368261774,1751080233671,-1473.69,0.00019178,2]
[368261775,1751080233682,-595.95570101,0.00019178,2]
[368261776,1751080233693,-486.30034482,0.00019178,2]
[368261777,1751080233703,-463.66971291,0.00019178,2]
[368261778,1751080233713,-460.0,0.00019178,2]
[368261779,1751080233722,-460.0,0.00019178,2]
[368261780,1751080233732,-396.9915733,0.00019178,2]
[368261781,1751080233742,-460.0,0.00019178,2]
[368261782,1751080233752,-463.16122543,0.00019178,2]
[368261783,1751080233761,-460.0,0.00019178,2]
[368261784,1751080233772,-1244.67,0.00019178,2]
[368261785,1751080233782,-460.0,0.00019178,2]
[368261786,1751080233793,-460.0,0.00019178,2]
[368261787,1751080233803,-464.37846495,0.00019178,2]
[368261788,1751080233813,-460.0,0.00019178,2]
[368261789,1751080233824,-460.0,0.00019178,2]
[368261790,1751080233833,-460.0,0.00019178,2]
[368261791,1751080233843,-1066.46,0.00019178,2]
[368261792,1751080233852,-460.0,0.00019178,2]
[368261793,1751080233862,-460.0,0.00019178,2]
[368261794,1751080233872,-1267.91,0.00019178,2]
[368261795,1751080233882,-460.0,0.00019178,2]
[368261796,1751080233891,-460.0,0.00019178,2]
[368261797,1751080233901,-466.50614923,0.00019178,2]
[368261798,1751080233911,-460.0,0.00019178,2]
[368261799,1751080233921,-979.98,0.00019178,2]
[368261800,1751080233931,-460.0,0.00019178,2]
[368261801,1751080233940,-460.0,0.00019178,2]
[368261802,1751080233952,-460.0,0.00019178,2]
[368261803,1751080233963,-460.0,0.00019178,2]
[368261804,1751080233972,-460.0,0.00019178,2]
[368261805,1751080233982,-1773.4,0.00019178,2]
[368261806,1751080233992,-460.0,0.00019178,2]
[368261807,1751080234001,-460.0,0.00019178,2]
[368261808,1751080234011,-460.0,0.00019178,2]
[368261809,1751080234021,-1415.18,0.00019178,2]
[368261810,1751080234031,-2469.9,0.00019178,2]
[368261811,1751080234041,-877.55,0.00019178,2]
[368261812,1751080234051,-730.7,0.00019178,2]
[368261813,1751080234061,-460.0,0.00019178,2]
[368261814,1751080234071,-460.0,0.00019178,2]
[368261815,1751080234080,-460.0,0.00019178,2]
[368261816,1751080234089,-460.0,0.00019178,2]
[368261817,1751080234100,-468.26,0.00019178,2]
[368261818,1751080234110,-460.0,0.00019178,2]
[368261819,1751080234120,-460.0,0.00019178,2]
[368261820,1751080234129,-500.0,0.00019178,2]
[368261821,1751080234139,-2475.57,0.00019178,2]
[368261822,1751080234149,-503.98140342,0.00019178,2]
[368261823,1751080234159,-460.0,0.00019178,2]
[368261824,1751080234169,-460.0,0.00019178,2]
[368261825,1751080234179,-460.0,0.00019178,2]
[368261826,1751080234189,-1126.08,0.00019178,2]
[368261827,1751080234199,-460.0,0.00019178,2]
[368261828,1751080234209,-460.0,0.00019178,2]
[368261829,1751080234219,-460.0,0.00019178,2]
[368261830,1751080234229,-460.0,0.00019178,2]
[368261831,1751080234239,-460.0,0.00019178,2]
[368261832,1751080234248,-841.18,0.00019178,2]
[368261833,1751080234259,-463.5734179,0.00019178,2]
[368261834,1751080234269,-460.0,0.00019178,2]
[368261835,1751080234279,-829.07,0.00019178,2]
[368261836,1751080234289,-460.0,0.00019178,2]
[368261837,1751080234299,-460.0,0.00019178,2]
[368261838,1751080234308,-461.93683741,0.00019178,2]
[368261839,1751080234318,-431.50793592,0.00019178,2]
[368261840,1751080234327,-214.837214,0.00019178,2]
[368261841,1751080234336,-151.0,0.00019397,2]
[368261842,1751080234346,-500.0,0.00019397,2]
[368261843,1751080234355,-151.0,0.00019397,2]
[368261844,1751080234365,-151.0,0.00019397,2]
[368261845,1751080234375,-500.0,0.00019397,2]
[368261846,1751080234384,-500.0,0.00019397,2]
[368261847,1751080234394,-500.0,0.00019397,2]
[368261848,1751080234403,-151.0,0.00019397,2]
[368261849,1751080234412,-151.0,0.00019397,2]
[368261850,1751080234422,-151.0,0.00019397,2]
[368261851,1751080234431,-501.02964082,0.00019424,2]
[368261852,1751080234440,-151.0,0.00019424,2]
[368261853,1751080234450,-151.0,0.00019424,2]
[368261854,1751080234460,-500.0,0.00019424,2]
[368261855,1751080234470,-500.0,0.00019424,2]
[368261856,1751080234481,-500.0,0.00019424,2]
[368261857,1751080234491,-151.0,0.00019424,2]
[368261858,1751080234500,-151.25535634,0.00019424,2]
[368261859,1751080234510,-151.0,0.00019424,2]
[368261860,1751080234521,-521.26560714,0.00019451,2]
[368261861,1751080234530,-364.885925,0.00019451,2]
[368261862,1751080234540,-151.0,0.00019452,2]
[368261863,1751080234550,-151.0,0.00019452,2]
[368261864,1751080234560,-500.0,0.00019452,2]
[368261865,1751080234570,-500.0,0.00019452,2]
[368261866,1751080234579,-500.89346277,0.00019452,2]
[368261867,1751080234591,-199.24330367,0.00019452,2]
[368261868,1751080234603,-165.18911145,0.00019452,2]
[368261869,1751080234613,-292.73167419,0.00019452,2]
[368261870,1751080234623,-460.0,0.00019452,2]
[368261871,1751080234633,-288.65921756,0.00019452,2]
[368261872,1751080234642,-460.0,0.00019452,2]
[368261873,1751080234652,-502.52106765,0.00019452,2]
[368261874,1751080234661,-460.0,0.00019452,2]
[368261875,1751080234670,-460.0,0.00019452,2]
[368261876,1751080234680,-460.0,0.00019452,2]
[368261877,1751080234690,-460.0,0.00019452,2]
[368261878,1751080234699,-484.08,0.00019452,2]
[368261879,1751080234708,-966.7,0.00019452,2]
[368261880,1751080234718,-292.71902577,0.00019452,2]
[368261881,1751080234727,-551.63096001,0.00019452,2]
[368261882,1751080234736,-550.45,0.00019452,2]
[368261883,1751080234746,-674.73,0.00019452,2]
[368261884,1751080234755,-460.0,0.00019452,2]
[368261885,1751080234764,-460.0,0.00019452,2]
[368261886,1751080234774,-460.0,0.00019452,2]
[368261887,1751080234784,-460.0,0.00019452,2]
[368261888,1751080234793,-164.56779318,0.00019452,2]
[368261889,1751080234804,-1473.69,0.00019452,2]
[368261890,1751080234813,-460.0,0.00019452,2]
[368261891,1751080234822,-460.0,0.00019452,2]
[368261892,1751080234832,-460.0,0.00019452,2]
[368261893,1751080234841,-460.0,0.00019452,2]
[368261894,1751080234850,-1244.67,0.00019452,2]
[368261895,1751080234860,-460.0,0.00019452,2]
[368261896,1751080234869,-460.0,0.00019452,2]
[368261897,1751080234878,-460.0,0.00019452,2]
[368261898,1751080234888,-460.0,0.00019452,2]
[368261899,1751080234897,-460.0,0.00019452,2]
[368261900,1751080234906,-1066.46,0.00019452,2]
[368261901,1751080234915,-460.0,0.00019452,2]
[368261902,1751080234924,-460.0,0.00019452,2]
[368261903,1751080234933,-1267.91,0.00019452,2]
[368261904,1751080234942,-460.0,0.00019452,2]
[368261905,1751080234951,-460.0,0.00019452,2]
[368261906,1751080234961,-979.98,0.00019452,2]
[368261907,1751080234970,-460.0,0.00019452,2]
[368261908,1751080234979,-460.0,0.00019452,2]
[368261909,1751080234988,-460.0,0.00019452,2]
[368261910,1751080234997,-460.0,0.00019452,2]
[368261911,1751080235007,-460.0,0.00019452,2]
[368261912,1751080235016,-1773.4,0.00019452,2]
[368261913,1751080235026,-460.0,0.00019452,2]
[368261914,1751080235035,-460.0,0.00019452,2]
[368261915,1751080235044,-460.0,0.00019452,2]
[368261916,1751080235053,-1415.18,0.00019452,2]
[368261917,1751080235063,-2469.9,0.00019452,2]
[368261918,1751080235073,-877.55,0.00019452,2]
[368261919,1751080235082,-730.7,0.00019452,2]
[368261920,1751080235091,-460.0,0.00019452,2]
[368261921,1751080235100,-460.0,0.00019452,2]
[368261922,1751080235110,-460.0,0.00019452,2]
[368261923,1751080235119,-460.0,0.00019452,2]
[368261924,1751080235129,-468.26,0.00019452,2]
[368261925,1751080235138,-540.0,0.00019452,2]
[368261926,1751080235148,-460.0,0.00019452,2]
[368261927,1751080235157,-2475.57,0.00019452,2]
[368261928,1751080235167,-460.0,0.00019452,2]
[368261929,1751080235176,-460.0,0.00019452,2]
[368261930,1751080235185,-460.0,0.00019452,2]
[368261931,1751080235194,-1126.08,0.00019452,2]
[368261932,1751080235203,-460.0,0.00019452,2]
[368261933,1751080235213,-592.44161709,0.00019452,2]
[368261934,1751080235222,-460.0,0.00019452,2]
[368261935,1751080235231,-460.0,0.00019452,2]
[368261936,1751080235240,-841.18,0.00019452,2]
[368261937,1751080235250,-460.0,0.00019452,2]
[368261938,1751080235259,-460.0,0.00019452,2]
[368261939,1751080235268,-829.07,0.00019452,2]
[368261940,1751080235277,-162.11,0.00019452,2]
[368261941,1751080235287,-246.57214437,0.00019479,2]
[368261942,1751080235296,-151.0,0.00019479,2]
[368261943,1751080235305,-500.0,0.00019479,2]
[368261944,1751080235314,-500.0,0.00019479,2]
[368261945,1751080235324,-246.70894032,0.00019507,2]
[368261946,1751080235333,-252.31769012,0.00019507,2]
[368261947,1751080235342,-332.16803267,0.00019507,2]
[368261948,1751080235352,-460.0,0.00019726,2]
[368261949,1751080235361,-501.72902335,0.00019726,2]
[368261950,1751080235370,-460.0,0.00019726,2]
[368261951,1751080235379,-349.40654342,0.00019726,2]
[368261952,1751080235395,-110.59345658,0.00019726,2]
[368261953,1751080235406,-460.0,0.00019726,2]
[368261954,1751080235415,-484.08,0.00019726,2]
[368261955,1751080235425,-966.7,0.00019726,2]
[368261956,1751080235434,-550.45,0.00019726,2]
[368261957,1751080235444,-674.73,0.00019726,2]
[368261958,1751080235453,-460.0,0.00019726,2]
[368261959,1751080235462,-460.0,0.00019726,2]
[368261960,1751080235473,-460.0,0.00019726,2]
[368261961,1751080235482,-1473.69,0.00019726,2]
[368261962,1751080235492,-460.0,0.00019726,2]
[368261963,1751080235501,-460.0,0.00019726,2]
[368261964,1751080235511,-326.96946224,0.00019726,2]
[368261965,1751080235520,-1244.67,0.00019726,2]
[368261966,1751080235529,-460.0,0.00019726,2]
[368261967,1751080235541,-460.0,0.00019726,2]
[368261968,1751080235552,-460.0,0.00019726,2]
[368261969,1751080235561,-460.0,0.00019726,2]
[368261970,1751080235570,-460.0,0.00019726,2]
[368261971,1751080235580,-1066.46,0.00019726,2]
[368261972,1751080235590,-460.0,0.00019726,2]
[368261973,1751080235602,-221.61,0.00019726,2]
[368261974,1751080235611,-1267.91,0.00019726,2]
[368261975,1751080235621,-460.0,0.00019726,2]
[368261976,1751080235630,-460.0,0.00019726,2]
[368261977,1751080235640,-979.98,0.00019726,2]
[368261978,1751080235649,-289.3529498,0.00019726,2]
[368261979,1751080235659,-460.0,0.00019726,2]
[368261980,1751080235668,-527.56049368,0.00019726,2]
[368261981,1751080235677,-460.0,0.00019726,2]
[368261982,1751080235688,-460.0,0.00019726,2]
[368261983,1751080235697,-1773.4,0.00019726,2]
[368261984,1751080235707,-460.0,0.00019726,2]
[368261985,1751080235716,-460.0,0.00019726,2]
[368261986,1751080235726,-460.0,0.00019726,2]
[368261987,1751080235735,-1047.86655872,0.00019726,2]
[368261997,1751080238803,-845.86,0.00019178,2]
[368261998,1751080238813,-367.31344128,0.00019726,2]
[368261999,1751080238822,-2469.9,0.00019726,2]
[368262000,1751080238832,-877.55,0.00019726,2]
[368262001,1751080238841,-730.7,0.00019726,2]
[368262002,1751080238850,-460.0,0.00019726,2]
[368262003,1751080238859,-460.0,0.00019726,2]
[368262004,1751080238868,-460.0,0.00019726,2]
[368262005,1751080238877,-460.0,0.00019726,2]
[368262006,1751080238887,-468.26,0.00019726,2]
[368262007,1751080238896,-460.0,0.00019726,2]
[368262008,1751080238905,-2475.57,0.00019726,2]
[368262009,1751080238914,-460.0,0.00019726,2]
[368262010,1751080238923,-460.0,0.00019726,2]
[368262011,1751080238933,-460.0,0.00019726,2]
[368262012,1751080238942,-1126.08,0.00019726,2]
[368262013,1751080238951,-460.0,0.00019726,2]
[368262014,1751080238959,-460.0,0.00019726,2]
[368262015,1751080238968,-841.18,0.00019726,2]
[368262016,1751080238977,-456.35103313,0.00019726,2]
[368262017,1751080238986,-460.0,0.00019726,2]
[368262018,1751080238995,-829.07,0.00019726,2]
[368262019,1751080239004,-516.45136958,0.00019768,2]
[368262020,1751080239014,-6510.81322358,0.000199,2]
[368262021,1751080239023,-160.72,0.0001999,3]
[368262022,1751080239032,-482.16,0.0001999,3]
[368262023,1751080239041,-277.08091247,0.0002,2]
[368262024,1751080239050,-460.0,0.0002,2]
[368262025,1751080239060,-187.47184117,0.0002,2]
[368262026,1751080239069,-484.08,0.0002,2]
[368262027,1751080239078,-550.45,0.0002,2]
[368262028,1751080239087,-674.73,0.0002,2]
[368262029,1751080239096,-460.0,0.0002,2]
[368262030,1751080239105,-460.0,0.0002,2]
[368262031,1751080239114,-460.0,0.0002,2]
[368262032,1751080239123,-1473.69,0.0002,2]
[368262033,1751080239132,-460.0,0.0002,2]
[368262034,1751080239141,-460.0,0.0002,2]
[368262035,1751080239150,-1244.67,0.0002,2]
[368262036,1751080239160,-460.0,0.0002,2]
[368262037,1751080239169,-460.0,0.0002,2]
[368262038,1751080239178,-460.0,0.0002,2]
[368262039,1751080239187,-1066.46,0.0002,2]
[368262040,1751080239196,-1267.91,0.0002,2]
[368262041,1751080239205,-460.0,0.0002,2]
[368262042,1751080239214,-460.0,0.0002,2]
[368262043,1751080239223,-979.98,0.0002,2]
[368262044,1751080239231,-460.0,0.0002,2]
[368262045,1751080239241,-460.0,0.0002,2]
[368262046,1751080239250,-460.0,0.0002,2]
[368262047,1751080239259,-1773.4,0.0002,2]
[368262048,1751080239268,-477.27919731,0.0002,2]
[368262049,1751080239277,-460.0,0.0002,2]
[368262050,1751080239286,-1415.18,0.0002,2]
[368262051,1751080239295,-2469.9,0.0002,2]
[368262052,1751080239304,-877.55,0.0002,2]
[368262053,1751080239314,-730.7,0.0002,2]
[368262054,1751080239323,-460.0,0.0002,2]
[368262055,1751080239332,-460.0,0.0002,2]
[368262056,1751080239481,-460.0,0.0002,2]
[368262057,1751080239501,-460.0,0.0002,2]
[368262058,1751080239512,-468.26,0.0002,2]
[368262059,1751080239522,-460.0,0.0002,2]
[368262060,1751080239532,-2475.57,0.0002,2]
[368262061,1751080239542,-460.0,0.0002,2]
[368262062,1751080239552,-460.0,0.0002,2]
[368262063,1751080239562,-460.0,0.0002,2]
[368262064,1751080239571,-1126.08,0.0002,2]
[368262065,1751080239582,-460.0,0.0002,2]
[368262066,1751080239592,-342.48,0.0002,2]
[368262067,1751080239606,-841.18,0.0002,2]
[368262068,1751080239616,-460.0,0.0002,2]
[368262069,1751080239625,-829.07,0.0002,2]
[368262070,1751080239636,-500.0,0.00020064,2]
[368262071,1751080239646,-374.16148355,0.00020067,2]
[368262072,1751080239655,-6510.81322339,0.00020141,2]
[368262073,1751080239665,-231.779988,0.00020187,2]
[368262074,1751080239675,-168.0,0.00020193,2]
[368262075,1751080239684,-160.0,0.00020251,2]
[368262076,1751080239694,-160.0,0.00020251,2]
[368262077,1751080239704,-847.18566335,0.00020251,2]
[368262078,1751080239714,-837.06984471,0.00020251,2]
[368262079,1751080239723,-213.78848551,0.00020251,2]
[368262080,1751080239733,-160.0,0.00020251,2]
[368262081,1751080239747,-160.0,0.00020251,2]
[368262082,1751080239757,-160.0,0.00020251,2]
[368262083,1751080239766,-214.95397287,0.00020251,2]
[368262084,1751080239776,-160.0,0.00020251,2]
[368262085,1751080239785,-160.0,0.00020251,2]
[368262086,1751080239795,-12564.78152626,0.00020251,2]
[368262087,1751080239804,-230.28494567,0.00020252,2]
[368262088,1751080239813,-460.0,0.00020273,2]
[368262089,1751080239822,-484.08,0.00020273,2]
[368262090,1751080239831,-550.45,0.00020273,2]
[368262091,1751080239841,-674.73,0.00020273,2]
[368262092,1751080239850,-460.0,0.00020273,2]
[368262093,1751080239860,-460.0,0.00020273,2]
[368262094,1751080239869,-460.0,0.00020273,2]
[368262095,1751080239878,-1473.69,0.00020273,2]
[368262096,1751080239888,-460.0,0.00020273,2]
[368262097,1751080239897,-1244.67,0.00020273,2]
[368262098,1751080239906,-460.0,0.00020273,2]
[368262099,1751080239916,-367.70562485,0.00020273,2]
[368262100,1751080239925,-460.0,0.00020273,2]
[368262101,1751080239935,-1066.46,0.00020273,2]
[368262103,1751080239944,-1267.91,0.00020273,2]
[368262104,1751080239953,-460.0,0.00020273,2]
[368262105,1751080239963,-254.9282196,0.00020273,2]
[368262106,1751080239972,-979.98,0.00020273,2]
[368262107,1751080239981,-460.0,0.00020273,2]
[368262108,1751080239990,-266.59712036,0.00020273,2]
[368262109,1751080240000,-460.0,0.00020273,2]
[368262110,1751080240009,-1773.4,0.00020273,2]
[368262111,1751080240019,-460.0,0.00020273,2]
[368262112,1751080240029,-1415.18,0.00020273,2]
[368262113,1751080240039,-2469.9,0.00020273,2]
[368262114,1751080240050,-877.55,0.00020273,2]
[368262115,1751080240059,-730.7,0.00020273,2]
[368262116,1751080240069,-460.0,0.00020273,2]
[368262117,1751080240078,-460.0,0.00020273,2]
[368262118,1751080240087,-460.0,0.00020273,2]
[368262119,1751080240096,-460.0,0.00020273,2]
[368262120,1751080240106,-468.26,0.00020273,2]
[368262121,1751080240115,-460.0,0.00020273,2]
[368262122,1751080240125,-2475.57,0.00020273,2]
[368262123,1751080240135,-460.0,0.00020273,2]
[368262124,1751080240144,-460.0,0.00020273,2]
[368262125,1751080240154,-460.0,0.00020273,2]
[368262126,1751080240163,-1126.08,0.00020273,2]
[368262127,1751080240173,-460.0,0.00020273,2]
[368262128,1751080240182,-841.18,0.00020273,2]
[368262129,1751080240191,-460.0,0.00020273,2]
[368262130,1751080240200,-829.07,0.00020273,2]
[368262131,1751080240209,-170.0,0.00020325,2]
[368262132,1751080240219,-180.3394797,0.00020329,2]
[368262133,1751080240228,-168.0,0.00020375,2]
[368262134,1751080240237,-6510.81322339,0.00020383,3]
[368262135,1751080240246,-1406.12231316,0.00020447,2]
[368262137,1751080240256,-500.0,0.00020547,14]
[368262139,1751080240265,-460.0,0.00020547,2]
[368262140,1751080240275,-484.08,0.00020547,2]
[368262141,1751080240284,-550.45,0.00020547,2]
[368262142,1751080240293,-674.73,0.00020547,2]
[368262143,1751080240303,-460.0,0.00020547,2]
[368262145,1751080240312,-460.0,0.00020547,2]
[368262147,1751080240322,-460.0,0.00020547,2]
[368262149,1751080240332,-1473.69,0.00020547,2]
[368262151,1751080240341,-460.0,0.00020547,2]